[Event "Live Chess"]
[Site "Chess.com"]
[Date "2024.06.01"]
[Round "-"]
[White "Tilbs_12"]
[Black "defenderalist"]
[Result "0-1"]
[WhiteElo "1651"]
[BlackElo "1513"]
[TimeControl "300"]
[EndTime "9:43:41 PDT"]
[Termination "defenderalist won on time"]

1. d4 {[%clk 0:04:56.9]} 1... Nf6 {[%clk 0:04:58]} 2. Nc3 {[%clk 0:04:55.5]}
2... e6 {[%clk 0:04:57.9]} 3. e4 {[%clk 0:04:54.7]} 3... d5 {[%clk 0:04:57.6]}
4. e5 {[%clk 0:04:53.8]} 4... Nfd7 {[%clk 0:04:53.7]} 5. Nce2 {[%clk 0:04:47.7]}
5... c5 {[%clk 0:04:52.2]} 6. c3 {[%clk 0:04:46.5]} 6... Nc6 {[%clk 0:04:49.5]}
7. Nf3 {[%clk 0:04:45.6]} 7... Be7 {[%clk 0:04:48.5]} 8. a3 {[%clk 0:04:41.1]}
8... O-O {[%clk 0:04:46.2]} 9. b4 {[%clk 0:04:39.2]} 9... cxd4 {[%clk
0:04:43.3]} 10. cxd4 {[%clk 0:04:37.5]} 10... f6 {[%clk 0:04:40.6]} 11. Nf4
{[%clk 0:04:25.4]} 11... Nb6 {[%clk 0:04:31.3]} 12. b5 {[%clk 0:03:44.8]} 12...
Na5 {[%clk 0:04:16.3]} 13. Bd3 {[%clk 0:03:36.1]} 13... fxe5 {[%clk 0:04:09]}
14. dxe5 {[%clk 0:03:33.7]} 14... Nac4 {[%clk 0:04:01.2]} 15. O-O {[%clk
0:03:16.1]} 15... Bg5 {[%clk 0:03:59.1]} 16. Nh3 {[%clk 0:03:07.4]} 16... Bxc1
{[%clk 0:03:43.2]} 17. Qxc1 {[%clk 0:02:56.2]} 17... Bd7 {[%clk 0:03:23.3]} 18.
a4 {[%clk 0:02:53.8]} 18... Rc8 {[%clk 0:03:17]} 19. Qb1 {[%clk 0:02:42.2]}
19... Rxf3 {[%clk 0:03:05.9]} 20. Bxh7+ {[%clk 0:02:28.8]} 20... Kh8 {[%clk
0:03:04.5]} 21. gxf3 {[%clk 0:02:27.9]} 21... Nd2 {[%clk 0:02:57]} 22. Qg6
{[%clk 0:02:26.2]} 22... Qh4 {[%clk 0:02:29.2]} 23. Ng5 {[%clk 0:02:20]} 23...
Be8 {[%clk 0:02:12]} 24. Nf7+ {[%clk 0:00:58.6]} 24... Bxf7 {[%clk 0:02:09.8]}
25. Qxf7 {[%clk 0:00:57.1]} 25... Kxh7 {[%clk 0:01:58.3]} 26. Qxe6 {[%clk
0:00:55]} 26... Nxf3+ {[%clk 0:01:51.3]} 27. Kg2 {[%clk 0:00:53.3]} 27... Rf8
{[%clk 0:01:41.3]} 28. Qh3 {[%clk 0:00:38.4]} 28... Qxh3+ {[%clk 0:01:28.4]} 29.
Kxh3 {[%clk 0:00:37]} 29... Nxe5 {[%clk 0:01:26.1]} 30. f4 {[%clk 0:00:19.2]}
30... Nd3 {[%clk 0:01:21.4]} 31. Kg3 {[%clk 0:00:16.3]} 31... Nc5 {[%clk
0:01:10]} 32. Rad1 {[%clk 0:00:15.6]} 32... Ne4+ {[%clk 0:01:07.8]} 33. Kg4
{[%clk 0:00:13.6]} 33... Nc4 {[%clk 0:01:04.9]} 34. Rxd5 {[%clk 0:00:12.4]}
34... Ne3+ {[%clk 0:01:03.9]} 35. Kf3 {[%clk 0:00:10.3]} 35... Nxd5 {[%clk
0:00:56.4]} 36. Kxe4 {[%clk 0:00:10.2]} 36... Nc3+ {[%clk 0:00:53.9]} 37. Ke5
{[%clk 0:00:09.1]} 37... Nxa4 {[%clk 0:00:53.8]} 38. Kd6 {[%clk 0:00:08.1]}
38... Nb6 {[%clk 0:00:49.9]} 39. Kc7 {[%clk 0:00:07.4]} 39... Rf7+ {[%clk
0:00:48.6]} 40. Kd8 {[%clk 0:00:06]} 40... Kg6 {[%clk 0:00:45.5]} 41. f5+ {[%clk
0:00:04.9]} 41... Rxf5 {[%clk 0:00:43]} 42. Rg1+ {[%clk 0:00:04.1]} 42... Rg5
{[%clk 0:00:41.3]} 43. Rd1 {[%clk 0:00:04]} 43... Rd5+ {[%clk 0:00:38.5]} 44.
Rxd5 {[%clk 0:00:03.1]} 44... Nxd5 {[%clk 0:00:38.4]} 45. Kc8 {[%clk 0:00:02.1]}
45... b6 {[%clk 0:00:35.6]} 46. Kb7 {[%clk 0:00:01.4]} 46... Kf6 {[%clk
0:00:31.5]} 47. Kxa7 {[%clk 0:00:00.4]} 47... Ke5 {[%clk 0:00:30.2]} 48. Kb7
{[%clk 0:00:00.3]} 48... g5 {[%clk 0:00:29.3]} 0-1

[Event "Live Chess"]
[Site "Chess.com"]
[Date "2024.06.01"]
[Round "-"]
[White "FlyingChessKestrel13"]
[Black "jumush"]
[Result "1/2-1/2"]
[WhiteElo "2126"]
[BlackElo "1740"]
[TimeControl "300"]
[EndTime "9:43:45 PDT"]
[Termination "Game drawn - insufficient material"]

1. d4 {[%clk 0:04:57.4]} 1... d5 {[%clk 0:04:57.4]} 2. c4 {[%clk 0:04:56.2]}
2... e6 {[%clk 0:04:55.7]} 3. Nf3 {[%clk 0:04:54.3]} 3... Be7 {[%clk 0:04:52.5]}
4. g3 {[%clk 0:04:53.8]} 4... h6 {[%clk 0:04:50.4]} 5. Bg2 {[%clk 0:04:53.3]}
5... Nf6 {[%clk 0:04:48.5]} 6. O-O {[%clk 0:04:52.3]} 6... O-O {[%clk
0:04:45.8]} 7. Nc3 {[%clk 0:04:49]} 7... b6 {[%clk 0:04:43.6]} 8. b3 {[%clk
0:04:44.6]} 8... Bb7 {[%clk 0:04:41.7]} 9. Ne5 {[%clk 0:04:42.8]} 9... Nbd7
{[%clk 0:04:39.5]} 10. Nxd7 {[%clk 0:04:41.1]} 10... Qxd7 {[%clk 0:04:36.7]} 11.
Bb2 {[%clk 0:04:39.1]} 11... c5 {[%clk 0:04:33.9]} 12. e3 {[%clk 0:04:37.2]}
12... Rac8 {[%clk 0:04:30.5]} 13. Rc1 {[%clk 0:04:33.6]} 13... Rfd8 {[%clk
0:04:28.2]} 14. cxd5 {[%clk 0:04:30.1]} 14... Nxd5 {[%clk 0:04:19.8]} 15. Nxd5
{[%clk 0:04:18.2]} 15... Bxd5 {[%clk 0:04:17]} 16. dxc5 {[%clk 0:04:17.3]} 16...
Bxc5 {[%clk 0:04:14.6]} 17. e4 {[%clk 0:04:15.9]} 17... Bb7 {[%clk 0:04:08.1]}
18. Qxd7 {[%clk 0:04:14.4]} 18... Rxd7 {[%clk 0:04:06.2]} 19. e5 {[%clk
0:04:10.9]} 19... Rcd8 {[%clk 0:04:03.9]} 20. Bxb7 {[%clk 0:04:07.6]} 20... Rxb7
{[%clk 0:04:01.2]} 21. a3 {[%clk 0:04:06.8]} 21... a5 {[%clk 0:03:58.7]} 22. Rc4
{[%clk 0:03:56.9]} 22... Rbd7 {[%clk 0:03:55.5]} 23. b4 {[%clk 0:03:54.9]} 23...
axb4 {[%clk 0:03:53]} 24. axb4 {[%clk 0:03:54]} 24... Be7 {[%clk 0:03:48.8]} 25.
Rc6 {[%clk 0:03:37]} 25... b5 {[%clk 0:03:34.1]} 26. Bc3 {[%clk 0:03:34.2]}
26... Rd5 {[%clk 0:03:30.5]} 27. Ra1 {[%clk 0:03:25.8]} 27... R8d7 {[%clk
0:03:26.5]} 28. Ra8+ {[%clk 0:03:22]} 28... Kh7 {[%clk 0:03:24.1]} 29. Kg2
{[%clk 0:03:19.8]} 29... Kg6 {[%clk 0:03:20.1]} 30. Rb8 {[%clk 0:03:12]} 30...
Bd8 {[%clk 0:02:57.7]} 31. g4 {[%clk 0:03:05.5]} 31... Bc7 {[%clk 0:02:55.1]}
32. Rb7 {[%clk 0:03:02.1]} 32... Bd8 {[%clk 0:02:42.5]} 33. Rxd7 {[%clk
0:02:58]} 33... Rxd7 {[%clk 0:02:40.6]} 34. Rc5 {[%clk 0:02:57.2]} 34... Rc7
{[%clk 0:02:39.2]} 35. f4 {[%clk 0:02:47.6]} 35... Rxc5 {[%clk 0:02:35.4]} 36.
bxc5 {[%clk 0:02:46.6]} 36... Bc7 {[%clk 0:02:33.5]} 37. Kf3 {[%clk 0:02:44.4]}
37... f6 {[%clk 0:02:31.7]} 38. Ke4 {[%clk 0:02:42.7]} 38... Kf7 {[%clk
0:01:59.7]} 39. f5 {[%clk 0:02:35.8]} 39... Ke7 {[%clk 0:01:50.9]} 40. fxe6
{[%clk 0:02:33.5]} 40... Kxe6 {[%clk 0:01:48.1]} 41. exf6 {[%clk 0:02:32.5]}
41... gxf6 {[%clk 0:01:25.5]} 42. Bd2 {[%clk 0:02:31.1]} 42... Bxh2 {[%clk
0:01:08.3]} 43. Bxh6 {[%clk 0:02:28.3]} 43... Bg1 {[%clk 0:01:01.8]} 44. c6
{[%clk 0:02:21.1]} 44... Kd6 {[%clk 0:00:59.6]} 45. Bg7 {[%clk 0:02:20.3]} 45...
Kxc6 {[%clk 0:00:55.8]} 46. Bxf6 {[%clk 0:02:19.3]} 46... b4 {[%clk 0:00:54.1]}
47. g5 {[%clk 0:02:17.3]} 47... Kd7 {[%clk 0:00:46.4]} 48. g6 {[%clk 0:02:10.2]}
48... Ke6 {[%clk 0:00:41.6]} 49. Bb2 {[%clk 0:02:00.7]} 49... Bc5 {[%clk
0:00:35.3]} 50. Kd3 {[%clk 0:01:56.9]} 50... Bf8 {[%clk 0:00:26.8]} 51. Kc4
{[%clk 0:01:55.2]} 51... Kf5 {[%clk 0:00:25]} 52. g7 {[%clk 0:01:53.6]} 52...
Bxg7 {[%clk 0:00:23.1]} 53. Kxb4 {[%clk 0:01:53.1]} 1/2-1/2

[Event "Live Chess"]
[Site "Chess.com"]
[Date "2024.06.01"]
[Round "-"]
[White "akp42"]
[Black "RuslanChessN"]
[Result "0-1"]
[WhiteElo "2000"]
[BlackElo "1980"]
[TimeControl "300"]
[EndTime "9:43:47 PDT"]
[Termination "RuslanChessN won by checkmate"]

1. e4 {[%clk 0:04:56.7]} 1... c6 {[%clk 0:04:57.3]} 2. Nc3 {[%clk 0:04:53]} 2...
d5 {[%clk 0:04:57.2]} 3. Nf3 {[%clk 0:04:52]} 3... Bg4 {[%clk 0:04:54]} 4. h3
{[%clk 0:04:50.1]} 4... Bh5 {[%clk 0:04:51.9]} 5. g4 {[%clk 0:04:32.5]} 5... Bg6
{[%clk 0:04:49.5]} 6. exd5 {[%clk 0:04:31.3]} 6... cxd5 {[%clk 0:04:46.3]} 7. d4
{[%clk 0:04:27.2]} 7... Nc6 {[%clk 0:04:45]} 8. Bd3 {[%clk 0:04:25.1]} 8... e6
{[%clk 0:04:43.2]} 9. Bxg6 {[%clk 0:04:17.5]} 9... hxg6 {[%clk 0:04:41.3]} 10.
Bg5 {[%clk 0:04:12.5]} 10... Qb6 {[%clk 0:04:34.4]} 11. Qd2 {[%clk 0:04:06.5]}
11... Nf6 {[%clk 0:03:59.7]} 12. O-O-O {[%clk 0:03:57.7]} 12... Bb4 {[%clk
0:03:36.3]} 13. Ne5 {[%clk 0:03:53]} 13... Ne4 {[%clk 0:03:27]} 14. Qe3 {[%clk
0:03:18.8]} 14... Bxc3 {[%clk 0:02:57.1]} 15. bxc3 {[%clk 0:03:13.9]} 15... Qa5
{[%clk 0:02:56.6]} 16. Nxc6 {[%clk 0:03:00.5]} 16... bxc6 {[%clk 0:02:54.3]} 17.
f3 {[%clk 0:02:30.1]} 17... Qa3+ {[%clk 0:02:51.8]} 18. Kb1 {[%clk 0:02:27.5]}
18... Rb8+ {[%clk 0:02:50.3]} 19. Ka1 {[%clk 0:02:26.1]} 19... Qb2# {[%clk
0:02:48.7]} 0-1

[Event "Live Chess"]
[Site "Chess.com"]
[Date "2024.06.01"]
[Round "-"]
[White "SvitlanaJ"]
[Black "Dhaydon19"]
[Result "0-1"]
[WhiteElo "386"]
[BlackElo "2699"]
[TimeControl "300"]
[EndTime "9:43:51 PDT"]
[Termination "Dhaydon19 won by checkmate"]

1. e4 {[%clk 0:04:56.9]} 1... c6 {[%clk 0:04:59.7]} 2. d4 {[%clk 0:04:54.9]}
2... d5 {[%clk 0:04:59.4]} 3. e5 {[%clk 0:04:52.9]} 3... c5 {[%clk 0:04:58.6]}
4. Be3 {[%clk 0:04:47.8]} 4... cxd4 {[%clk 0:04:57.9]} 5. Bxd4 {[%clk
0:04:46.5]} 5... Nc6 {[%clk 0:04:57.6]} 6. Nf3 {[%clk 0:04:41.8]} 6... Bg4
{[%clk 0:04:55.5]} 7. Be2 {[%clk 0:04:39.9]} 7... Bxf3 {[%clk 0:04:53.3]} 8.
Bxf3 {[%clk 0:04:38.3]} 8... e6 {[%clk 0:04:52.5]} 9. Nc3 {[%clk 0:04:27.7]}
9... Nge7 {[%clk 0:04:51]} 10. O-O {[%clk 0:04:23.2]} 10... Nf5 {[%clk
0:04:48.1]} 11. Ne2 {[%clk 0:04:15.4]} 11... Nfxd4 {[%clk 0:04:44.4]} 12. Nxd4
{[%clk 0:04:13.2]} 12... Nxe5 {[%clk 0:04:44.3]} 13. c3 {[%clk 0:03:53.8]} 13...
Be7 {[%clk 0:04:41.8]} 14. Qa4+ {[%clk 0:03:49.6]} 14... Qd7 {[%clk 0:04:41]}
15. Nb5 {[%clk 0:03:38.7]} 15... O-O {[%clk 0:04:38.4]} 16. Rae1 {[%clk
0:03:31]} 16... Nxf3+ {[%clk 0:04:36.2]} 17. gxf3 {[%clk 0:03:21.4]} 17... a6
{[%clk 0:04:35.2]} 18. Qg4 {[%clk 0:03:00]} 18... axb5 {[%clk 0:04:32.4]} 19.
Re5 {[%clk 0:02:52.8]} 19... g6 {[%clk 0:04:29.7]} 20. h4 {[%clk 0:02:43.1]}
20... Bf6 {[%clk 0:04:27.7]} 21. Rh5 {[%clk 0:02:37.8]} 21... Ra4 {[%clk
0:04:26.1]} 22. Qg3 {[%clk 0:02:28.7]} 22... Kh8 {[%clk 0:04:25]} 23. Rxh7+
{[%clk 0:02:15.3]} 23... Kxh7 {[%clk 0:04:22.8]} 24. h5 {[%clk 0:02:09.1]} 24...
gxh5 {[%clk 0:04:20.5]} 25. f4 {[%clk 0:01:52]} 25... Rh8 {[%clk 0:04:18.9]} 26.
Qd3+ {[%clk 0:01:49.7]} 26... Kh6 {[%clk 0:04:16.6]} 27. Qd2 {[%clk 0:01:37.7]}
27... Rg8+ {[%clk 0:04:14.4]} 28. Kh1 {[%clk 0:01:34.8]} 28... Rg4 {[%clk
0:04:14]} 29. f5+ {[%clk 0:01:31.8]} 29... Bg5 {[%clk 0:04:13.1]} 30. Qc2 {[%clk
0:01:25.2]} 30... Rh4+ {[%clk 0:04:12]} 31. Kg1 {[%clk 0:01:23.3]} 31... Rag4#
{[%clk 0:04:11.3]} 0-1

[Event "Live Chess"]
[Site "Chess.com"]
[Date "2024.06.01"]
[Round "-"]
[White "Trendle"]
[Black "13Alexey"]
[Result "1-0"]
[WhiteElo "2621"]
[BlackElo "749"]
[TimeControl "300"]
[EndTime "9:44:11 PDT"]
[Termination "Trendle won by resignation"]

1. d4 {[%clk 0:04:57.4]} 1... d5 {[%clk 0:04:58.7]} 2. Bf4 {[%clk 0:04:53.9]}
2... Bf5 {[%clk 0:04:57.2]} 3. e3 {[%clk 0:04:50.9]} 3... e6 {[%clk 0:04:55.4]}
4. c4 {[%clk 0:04:49.1]} 4... c6 {[%clk 0:04:53.7]} 5. Nc3 {[%clk 0:04:48.4]}
5... Nf6 {[%clk 0:04:50.8]} 6. Nf3 {[%clk 0:04:45]} 6... Be7 {[%clk 0:04:49.3]}
7. Be2 {[%clk 0:04:43.5]} 7... Nbd7 {[%clk 0:04:44.9]} 8. Nh4 {[%clk 0:04:42.3]}
8... Ne4 {[%clk 0:04:38.1]} 9. Nxf5 {[%clk 0:04:39.6]} 9... exf5 {[%clk
0:04:37.1]} 10. cxd5 {[%clk 0:04:38.1]} 10... cxd5 {[%clk 0:04:34.4]} 11. O-O
{[%clk 0:04:34.2]} 11... O-O {[%clk 0:04:32.3]} 12. Nxd5 {[%clk 0:04:32.8]}
12... Bb4 {[%clk 0:04:11.7]} 13. Nxb4 {[%clk 0:04:30.4]} 1-0

[Event "Live Chess"]
[Site "Chess.com"]
[Date "2024.06.01"]
[Round "-"]
[White "AnotherOneBadPlayer"]
[Black "Richardallis"]
[Result "1-0"]
[WhiteElo "2102"]
[BlackElo "1935"]
[TimeControl "300"]
[EndTime "9:44:20 PDT"]
[Termination "AnotherOneBadPlayer won by resignation"]

1. Nf3 {[%clk 0:04:57.7]} 1... f5 {[%clk 0:04:46.6]} 2. b3 {[%clk 0:04:56.3]}
2... Nf6 {[%clk 0:04:45.5]} 3. Bb2 {[%clk 0:04:55.2]} 3... g6 {[%clk 0:04:45]}
4. e3 {[%clk 0:04:54.6]} 4... Bg7 {[%clk 0:04:44.5]} 5. Be2 {[%clk 0:04:54]}
5... d5 {[%clk 0:04:43.7]} 6. O-O {[%clk 0:04:52]} 6... O-O {[%clk 0:04:42.8]}
7. d4 {[%clk 0:04:50.2]} 7... Ne4 {[%clk 0:04:40.5]} 8. c4 {[%clk 0:04:47]} 8...
e6 {[%clk 0:04:38.5]} 9. Nbd2 {[%clk 0:04:45.4]} 9... c5 {[%clk 0:04:36.2]} 10.
Ne5 {[%clk 0:04:41.3]} 10... b6 {[%clk 0:04:30.9]} 11. Nxe4 {[%clk 0:04:38.9]}
11... fxe4 {[%clk 0:04:29.5]} 12. Rc1 {[%clk 0:04:32.7]} 12... Bxe5 {[%clk
0:04:27.4]} 13. dxe5 {[%clk 0:04:31]} 13... Nd7 {[%clk 0:04:24.1]} 14. cxd5
{[%clk 0:04:29.1]} 14... Qg5 {[%clk 0:04:12.7]} 15. dxe6 {[%clk 0:04:16.1]}
15... Nxe5 {[%clk 0:04:11.6]} 16. Qd6 {[%clk 0:03:42.4]} 16... Rd8 {[%clk
0:04:01.8]} 17. Qxe5 {[%clk 0:03:39.9]} 17... Qxe5 {[%clk 0:03:56.1]} 18. Bxe5
{[%clk 0:03:36.8]} 18... Bxe6 {[%clk 0:03:55.6]} 19. Rfd1 {[%clk 0:03:33.4]}
19... Kf7 {[%clk 0:03:53.3]} 20. Bc4 {[%clk 0:03:31.6]} 20... Ke7 {[%clk
0:03:49.1]} 21. Bf4 {[%clk 0:03:18.9]} 21... Rxd1+ {[%clk 0:03:33.2]} 22. Rxd1
{[%clk 0:03:17.5]} 22... Bf5 {[%clk 0:03:32.2]} 23. Bd5 {[%clk 0:03:06.6]} 23...
Rc8 {[%clk 0:03:19.1]} 24. Bg5+ {[%clk 0:02:56.7]} 24... Ke8 {[%clk 0:03:16.4]}
25. h3 {[%clk 0:02:50.8]} 25... h5 {[%clk 0:03:13.7]} 26. Bc4 {[%clk 0:02:42.9]}
26... Bd7 {[%clk 0:03:04]} 27. Bf7+ {[%clk 0:02:31.1]} 27... Kxf7 {[%clk
0:03:00.3]} 28. Rxd7+ {[%clk 0:02:29.2]} 28... Ke6 {[%clk 0:02:59.5]} 29. Rxa7
{[%clk 0:02:24.2]} 29... Rc6 {[%clk 0:02:57.4]} 30. Rg7 {[%clk 0:02:16.4]} 30...
Kf5 {[%clk 0:02:55.6]} 31. h4 {[%clk 0:02:14.7]} 31... Rd6 {[%clk 0:02:54.3]}
32. Rf7+ {[%clk 0:02:11.9]} 32... Ke6 {[%clk 0:02:50.4]} 33. Rf6+ {[%clk
0:02:09.2]} 33... Ke5 {[%clk 0:02:49.9]} 34. Rxd6 {[%clk 0:02:07.6]} 34... Kxd6
{[%clk 0:02:49.5]} 35. Kf1 {[%clk 0:02:05.1]} 1-0

[Event "Live Chess"]
[Site "Chess.com"]
[Date "2024.06.01"]
[Round "-"]
[White "Grace6363"]
[Black "DoggyDalmatian"]
[Result "1-0"]
[WhiteElo "1148"]
[BlackElo "1542"]
[TimeControl "300"]
[EndTime "9:44:22 PDT"]
[Termination "Grace6363 won by checkmate"]

1. d4 {[%clk 0:04:56.8]} 1... d5 {[%clk 0:04:59.1]} 2. c4 {[%clk 0:04:55.9]}
2... c6 {[%clk 0:04:56.9]} 3. Nc3 {[%clk 0:04:54.8]} 3... Nf6 {[%clk 0:04:56.1]}
4. cxd5 {[%clk 0:04:53.4]} 4... cxd5 {[%clk 0:04:54.3]} 5. Nf3 {[%clk
0:04:52.6]} 5... Bf5 {[%clk 0:04:51]} 6. a3 {[%clk 0:04:51.5]} 6... a6 {[%clk
0:04:49.9]} 7. b4 {[%clk 0:04:49.2]} 7... e6 {[%clk 0:04:49]} 8. e3 {[%clk
0:04:48.1]} 8... Nc6 {[%clk 0:04:48.1]} 9. Be2 {[%clk 0:04:46.4]} 9... Be7
{[%clk 0:04:47.2]} 10. O-O {[%clk 0:04:44.9]} 10... O-O {[%clk 0:04:46.2]} 11.
Bb2 {[%clk 0:04:41.4]} 11... Qd7 {[%clk 0:04:38.5]} 12. Bd3 {[%clk 0:04:40]}
12... Bxd3 {[%clk 0:04:36.3]} 13. Qxd3 {[%clk 0:04:39.2]} 13... h6 {[%clk
0:04:34.7]} 14. h3 {[%clk 0:04:32.3]} 14... Rac8 {[%clk 0:04:32.2]} 15. Rac1
{[%clk 0:04:30.6]} 15... Bd6 {[%clk 0:04:28.1]} 16. Ne2 {[%clk 0:04:27.9]} 16...
Rfe8 {[%clk 0:04:23.6]} 17. Ng3 {[%clk 0:04:15.8]} 17... a5 {[%clk 0:04:09.2]}
18. b5 {[%clk 0:04:09.6]} 18... Ne7 {[%clk 0:04:05]} 19. Rxc8 {[%clk 0:04:08]}
19... Rxc8 {[%clk 0:04:03.6]} 20. Ne5 {[%clk 0:03:51.5]} 20... Bxe5 {[%clk
0:03:53.3]} 21. dxe5 {[%clk 0:03:50.6]} 21... Ne8 {[%clk 0:03:46.7]} 22. f4
{[%clk 0:03:48.6]} 22... Nc7 {[%clk 0:03:44.6]} 23. a4 {[%clk 0:03:42.2]} 23...
Na8 {[%clk 0:03:38.2]} 24. e4 {[%clk 0:03:40.8]} 24... Nb6 {[%clk 0:03:34.6]}
25. f5 {[%clk 0:03:17.6]} 25... exf5 {[%clk 0:03:27.9]} 26. Nxf5 {[%clk
0:03:15]} 26... Nxf5 {[%clk 0:03:23]} 27. exf5 {[%clk 0:03:13.9]} 27... Nc4
{[%clk 0:03:22.3]} 28. Bd4 {[%clk 0:03:04.6]} 28... Qc7 {[%clk 0:03:13.4]} 29.
e6 {[%clk 0:03:01.1]} 29... fxe6 {[%clk 0:03:09.9]} 30. fxe6 {[%clk 0:02:59.8]}
30... Re8 {[%clk 0:03:07.7]} 31. Qg6 {[%clk 0:02:56.2]} 31... Re7 {[%clk
0:02:51.4]} 32. Bf6 {[%clk 0:02:41.9]} 32... Rxe6 {[%clk 0:02:44.6]} 33. Rf4
{[%clk 0:01:58.2]} 33... Qxf4 {[%clk 0:02:39]} 34. Qxg7# {[%clk 0:01:57.2]} 1-0

[Event "Live Chess"]
[Site "Chess.com"]
[Date "2024.06.01"]
[Round "-"]
[White "Bob2pen"]
[Black "dl_chess"]
[Result "1-0"]
[WhiteElo "1799"]
[BlackElo "1161"]
[TimeControl "300"]
[EndTime "9:44:25 PDT"]
[Termination "Bob2pen won on time"]

1. e4 {[%clk 0:04:56.3]} 1... e6 {[%clk 0:04:58.9]} 2. d4 {[%clk 0:04:55.2]}
2... d5 {[%clk 0:04:57.4]} 3. Nc3 {[%clk 0:04:54.3]} 3... Nf6 {[%clk 0:04:52.4]}
4. Bg5 {[%clk 0:04:52.2]} 4... h6 {[%clk 0:04:44.6]} 5. Bxf6 {[%clk 0:04:48.8]}
5... Qxf6 {[%clk 0:04:42.6]} 6. e5 {[%clk 0:04:47.5]} 6... Qd8 {[%clk
0:04:32.8]} 7. Bd3 {[%clk 0:04:44.7]} 7... c5 {[%clk 0:04:31.4]} 8. Nf3 {[%clk
0:04:40.5]} 8... Nc6 {[%clk 0:04:30]} 9. O-O {[%clk 0:04:35.3]} 9... cxd4 {[%clk
0:04:22.7]} 10. Nb5 {[%clk 0:04:33.1]} 10... a6 {[%clk 0:04:14.9]} 11. Nbxd4
{[%clk 0:04:30.8]} 11... Bc5 {[%clk 0:03:59.8]} 12. c3 {[%clk 0:04:27.5]} 12...
Qb6 {[%clk 0:03:52.2]} 13. b4 {[%clk 0:04:15.8]} 13... Be7 {[%clk 0:03:48]} 14.
a4 {[%clk 0:04:11.4]} 14... Nxd4 {[%clk 0:03:24.4]} 15. Nxd4 {[%clk 0:04:06.6]}
15... Qc7 {[%clk 0:03:19.6]} 16. Qb3 {[%clk 0:03:56.6]} 16... Qxe5 {[%clk
0:03:14.4]} 17. Rae1 {[%clk 0:03:50.6]} 17... Qd6 {[%clk 0:03:07.6]} 18. b5
{[%clk 0:03:48.1]} 18... O-O {[%clk 0:02:58]} 19. Nf3 {[%clk 0:03:32.7]} 19...
Bd7 {[%clk 0:02:43.7]} 20. Rd1 {[%clk 0:03:30]} 20... Rfc8 {[%clk 0:02:36.5]}
21. c4 {[%clk 0:03:27.6]} 21... axb5 {[%clk 0:02:06.7]} 22. axb5 {[%clk
0:03:26.1]} 22... Ra3 {[%clk 0:02:03]} 23. Qb2 {[%clk 0:03:18.9]} 23... Qb6
{[%clk 0:01:33.5]} 24. Ne5 {[%clk 0:03:07.3]} 24... Be8 {[%clk 0:01:29.1]} 25.
cxd5 {[%clk 0:02:59.3]} 25... exd5 {[%clk 0:01:20.4]} 26. Rfe1 {[%clk
0:02:54.9]} 26... Rcc3 {[%clk 0:01:11]} 27. Bf1 {[%clk 0:02:42.3]} 27... Bc5
{[%clk 0:01:02.9]} 28. Rxd5 {[%clk 0:02:35.6]} 28... Bxf2+ {[%clk 0:00:58.9]}
29. Qxf2 {[%clk 0:02:32.8]} 29... Qxf2+ {[%clk 0:00:53.1]} 30. Kxf2 {[%clk
0:02:31.1]} 30... Ra2+ {[%clk 0:00:49]} 31. Re2 {[%clk 0:02:26.7]} 31... Rcc2
{[%clk 0:00:42.8]} 32. Rd8 {[%clk 0:02:21.1]} 32... Rxe2+ {[%clk 0:00:40.5]} 33.
Bxe2 {[%clk 0:02:19.6]} 33... Kf8 {[%clk 0:00:28.7]} 34. Ke3 {[%clk 0:02:18]}
34... Ke7 {[%clk 0:00:26.7]} 35. Rd2 {[%clk 0:02:16.2]} 35... Ra3+ {[%clk
0:00:24.8]} 36. Kd4 {[%clk 0:02:10.6]} 36... f6 {[%clk 0:00:20.9]} 37. Nc4
{[%clk 0:02:08.1]} 37... Ra4 {[%clk 0:00:16.6]} 38. Rb2 {[%clk 0:02:04.3]} 38...
Bf7 {[%clk 0:00:11.7]} 39. Kc5 {[%clk 0:01:59.9]} 39... Kd7 {[%clk 0:00:02.2]}
40. Nb6+ {[%clk 0:01:56.7]} 40... Kc7 {[%clk 0:00:01.2]} 41. Nxa4 {[%clk
0:01:54.6]} 1-0

[Event "Live Chess"]
[Site "Chess.com"]
[Date "2024.06.01"]
[Round "-"]
[White "ACM42"]
[Black "Enhard"]
[Result "1-0"]
[WhiteElo "2204"]
[BlackElo "1457"]
[TimeControl "300"]
[EndTime "9:44:27 PDT"]
[Termination "ACM42 won by resignation"]

1. e4 {[%clk 0:04:59]} 1... c6 {[%clk 0:04:58.2]} 2. d4 {[%clk 0:04:57.8]} 2...
d5 {[%clk 0:04:57.5]} 3. e5 {[%clk 0:04:57.3]} 3... Bf5 {[%clk 0:04:55.5]} 4. c3
{[%clk 0:04:56.3]} 4... e6 {[%clk 0:04:54]} 5. f4 {[%clk 0:04:49.4]} 5... h6
{[%clk 0:04:51.7]} 6. Nf3 {[%clk 0:04:48.4]} 6... Nd7 {[%clk 0:04:47.5]} 7. Bd3
{[%clk 0:04:47.2]} 7... Bxd3 {[%clk 0:04:46.3]} 8. Qxd3 {[%clk 0:04:46.1]} 8...
c5 {[%clk 0:04:45.3]} 9. O-O {[%clk 0:04:44.1]} 9... cxd4 {[%clk 0:04:42.7]} 10.
cxd4 {[%clk 0:04:43.1]} 10... Ne7 {[%clk 0:04:38.9]} 11. Nc3 {[%clk 0:04:42.3]}
11... Nf5 {[%clk 0:04:36.7]} 12. g4 {[%clk 0:04:38.9]} 12... Nh4 {[%clk
0:04:33.7]} 13. f5 {[%clk 0:04:38]} 13... Nxf3+ {[%clk 0:04:32.5]} 14. Rxf3
{[%clk 0:04:36.1]} 14... Qh4 {[%clk 0:04:24.6]} 15. h3 {[%clk 0:04:27.3]} 15...
O-O-O {[%clk 0:04:11]} 16. Nb5 {[%clk 0:04:16.2]} 16... a6 {[%clk 0:04:08.2]}
17. Qc3+ {[%clk 0:04:09.8]} 17... Bc5 {[%clk 0:03:59.7]} 18. Nd6+ {[%clk
0:04:06.2]} 18... Kb8 {[%clk 0:03:53.6]} 19. dxc5 {[%clk 0:04:05.4]} 19... Nxe5
{[%clk 0:03:43.6]} 20. Qxe5 {[%clk 0:04:02.2]} 20... Rhf8 {[%clk 0:03:39.5]} 21.
Nxf7+ {[%clk 0:03:59]} 21... Ka8 {[%clk 0:03:32]} 22. Nxd8 {[%clk 0:03:58.1]}
22... Rxd8 {[%clk 0:03:30.9]} 23. fxe6 {[%clk 0:03:42.3]} 23... Qe7 {[%clk
0:03:26.2]} 24. Rf7 {[%clk 0:03:38.4]} 24... Qxc5+ {[%clk 0:03:25.1]} 25. Be3
{[%clk 0:03:37.7]} 25... Qc2 {[%clk 0:03:06.3]} 26. Rc1 {[%clk 0:03:35.2]} 26...
Qe2 {[%clk 0:02:57.2]} 1-0